[Event "French-ch U16-U18 2024"]
[Site "Agen"]
[Date "2024.04.15"]
[Round "3.14"]
[White "Milojevic-Daim, Lola-Shaina"]
[Black "Yaghi, leen"]
[Result "1/2-1/2"]
[ECO "A28"]
[WhiteElo "1867"]
[BlackElo "1941"]
[Annotator "NA RC"]
[PlyCount "67"]
[EventDate "2024.04.14"]
[EventType "swiss"]
[EventCountry "FRA"]
[SourceTitle "playchess.com"]
[Source "ChessBase"]
[SourceQuality "1"]
[TimeControl "5400+30"]

1. c4 {[%emt 0:00:10]} e5 {[%emt 0:00:38]} 2. Nc3 {[%emt 0:00:35]} Nf6 {[%emt 0:00:15]} 3. Nf3 {[%emt 0:02:58]} Nc6 {[%emt 0:01:03]} 4. d3 {[%emt 0:04:11]} d5 {[%emt 0:01:12]} 5. cxd5 {[%emt 0:00:52]} Nxd5 {[%emt 0:02:34]} 6. e4 {[%emt 0:02:38]} Nb6 {[%emt 0:02:21]} 7. Be3 {[%emt 0:02:53]} Be7 {[%emt 0:00:56]} 8. d4 {[%emt 0:06:01]} exd4 {[%emt 0:07:44]} 9. Nxd4 {[%emt 0:00:21]} Ne5 {[%emt 0:03:45]} 10. Be2 {[%emt 0:09:52]} O-O {[%emt 0:02:51]} 11. O-O {[%emt 0:07:59]} Nec4 {[%emt 0:05:52]} 12. Qc1 {[%emt 0:10:25]} Nxe3 {[%emt 0:02:44]} 13. Qxe3 {[%emt 0:00:20]} Bc5 {[%emt 0:00:34]} 14. Rfd1 {[%emt 0:01:53]} Qf6 {[%emt 0:00:40]} 15. e5 {[%emt 0:08:36]} Qe7 {[%emt 0:08:25]} 16. Qe4 {[%emt 0:03:25]} Re8 {[%emt 0:08:45]} 17. Nb3 {[%emt 0:05:36]} Be6 {[%emt 0:09:46]} 18. Nxc5 {[%emt 0:08:20]} Qxc5 {[%emt 0:00:05]} 19. Rac1 {[%emt 0:00:47]} Rad8 {[%emt 0:12:37]} 20. Bd3 {[%emt 0:07:23]} g6 {[%emt 0:00:40]} 21. Nb5 {[%emt 0:01:50]} Bf5 {[%emt 0:04:03]} 22. Rxc5 {[%emt 0:10:05]} Bxe4 {[%emt 0:00:05]} 23. Be2 {[%emt 0:00:30]} Rxd1+ {[%emt 0:13:12]} 24. Bxd1 {[%emt 0:00:01]} Nd7 {[%emt 0:02:58]} 25. Rxc7 {[%emt 0:03:09]} Rxe5 {[%emt 0:03:28]} 26. Rxd7 {[%emt 0:00:43]} Rxb5 {[%emt 0:00:02]} 27. Bb3 {[%emt 0:00:38]} Rf5 {[%emt 0:01:26]} 28. f3 {[%emt 0:00:57]} Bc6 {[%emt 0:00:05]} 29. Rd4 {[%emt 0:00:51]} Kg7 {[%emt 0:01:32]} 30. Kf2 {[%emt 0:00:21]} Re5 {[%emt 0:00:54]} 31. Bc2 {[%emt 0:00:49]} Rb5 {[%emt 0:02:48]} 32. Bb3 {[%emt 0:00:26]} Re5 {[%emt 0:00:29]} 33. Bc2 {[%emt 0:00:12]} Rb5 {[%emt 0:00:45]} 34. Bb3 {[%emt 0:00:04]} 1/2-1/2

[Event "French-ch U16-U18 2024"]
[Site "Agen"]
[Date "2024.04.15"]
[Round "3.15"]
[White "Riss, Selenia"]
[Black "Le Coz, Marie Sarah"]
[Result "1/2-1/2"]
[ECO "B31"]
[WhiteElo "1763"]
[BlackElo "1840"]
[Annotator "NA RC"]
[PlyCount "46"]
[EventDate "2024.04.14"]
[EventType "swiss"]
[EventCountry "FRA"]
[SourceTitle "playchess.com"]
[Source "ChessBase"]
[SourceQuality "1"]
[TimeControl "5400+30"]

1. e4 {[%emt 0:00:03]} c5 {[%emt 0:00:06]} 2. Nf3 {[%emt 0:00:04]} Nc6 {[%emt 0:00:07]} 3. Bb5 {[%emt 0:00:05]} g6 {[%emt 0:00:15]} 4. O-O {[%emt 0:00:12]} Bg7 {[%emt 0:00:10]} 5. c3 {[%emt 0:00:22]} e5 {[%emt 0:01:04]} 6. Re1 {[%emt 0:12:58]} Nge7 {[%emt 0:02:20]} 7. Na3 {[%emt 0:08:44]} O-O {[%emt 0:03:03]} 8. Nc2 {[%emt 0:02:28]} a6 {[%emt 0:17:43]} 9. Bf1 {[%emt 0:00:38]} d5 {[%emt 0:04:11]} 10. exd5 {[%emt 0:08:55]} Nxd5 {[%emt 0:00:34]} 11. d4 {[%emt 0:06:08]} cxd4 {[%emt 0:02:57]} 12. cxd4 {[%emt 0:00:07]} Bg4 {[%emt 0:04:39]} 13. dxe5 {[%emt 0:03:33]} Bxf3 {[%emt 0:02:05]} 14. Qxf3 {[%emt 0:00:21]} Nxe5 {[%emt 0:00:27]} 15. Qb3 {[%emt 0:04:31]} Rc8 {[%emt 0:08:50]} 16. Ne3 {[%emt 0:10:58]} Nxe3 {[%emt 0:03:37]} 17. Bxe3 {[%emt 0:01:00]} b5 {[%emt 0:05:30]} 18. Rad1 {[%emt 0:02:26]} Qh4 {[%emt 0:02:37]} 19. h3 {[%emt 0:05:49]} Nc4 {[%emt 0:02:58]} 20. Bxc4 {[%emt 0:04:17]} Qxc4 {[%emt 0:00:31]} 21. Qxc4 {[%emt 0:01:08]} Rxc4 {[%emt 0:00:08]} 22. b3 {[%emt 0:00:54]} Rc2 {[%emt 0:02:48]} 23. Rd2 {[%emt 0:02:06]} Rxd2 {[%emt 0:02:45]} 1/2-1/2

[Event "French-ch U16-U18 2024"]
[Site "Agen"]
[Date "2024.04.15"]
[Round "3.16"]
[White "Makkar, Rajat"]
[Black "Delaplace, Mathias"]
[Result "1-0"]
[ECO "E68"]
[WhiteElo "2452"]
[BlackElo "2082"]
[Annotator "TA"]
[PlyCount "99"]
[EventDate "2024.04.14"]
[EventType "swiss"]
[EventCountry "FRA"]
[SourceTitle "playchess.com"]
[Source "ChessBase"]
[SourceQuality "1"]
[TimeControl "5400+30"]

{[%evp 23,98,27,38,28,30,28,41,27,25,0,0,0,0,0,0,-4,0,37,11,0,24,-35,-28,-44,45,51,53,51,38,43,51,58,65,66,62,65,147,105,97,9,17,0,8,-3,0,0,0,0,0,-27,0,0,7,0,0,0,36,39,47,53,46,-78,504,496,487,475,721,707,929,915,29988,29989,29995,29996,29996,29997,29999]} 1. c4 {[%emt 0:00:38]} Nf6 {[%emt 0:00:05]} 2. g3 {[%emt 0:00:06]} g6 {[%emt 0:00:13]} 3. Bg2 {[%emt 0:00:12]} Bg7 {[%emt 0:00:07]} 4. Nc3 {[%emt 0:00:06]} d6 {[%emt 0:00:15]} 5. d4 {[%emt 0:00:13]} O-O {[%emt 0:00:05]} 6. Nf3 {[%emt 0:00:03]} Bf5 {[%emt 0:00:05]} 7. Nh4 {[%emt 0:01:50]} Bc8 {[%emt 0:01:48]} 8. Nf3 {[%emt 0:01:55]} Bf5 {[%emt 0:00:10]} 9. Nh4 {[%emt 0:00:19]} Bc8 {[%emt 0:00:56]} 10. O-O {[%emt 0:00:08]} e5 {[%emt 0:05:54]} 11. Nf3 {[%emt 0:01:54]} Nbd7 {[%emt 0:05:08]} 12. e4 {[%emt 0:00:15]} b6 {[%emt 0:06:02]} 13. h3 {[%emt 0:03:29]} Bb7 {[%emt 0:00:16]} 14. d5 {[%emt 0:04:58]} Nc5 {[%emt 0:02:08]} 15. Ne1 {[%emt 0:01:31] White is slightly better.} a5 {[%emt 0:00:11]} 16. Be3 {[%emt 0:07:46]} Nfd7 {[%emt 0:07:41]} 17. Rc1 {[%emt 0:03:54]} f5 {[%emt 0:12:48]} 18. exf5 {[%emt 0:00:15]} gxf5 {[%emt 0:01:21]} 19. f4 {[%emt 0:00:17]} Qe8 {[%emt 0:15:29]} 20. Rc2 {[%emt 0:04:57]} Qg6 {[%emt 0:03:11]} 21. Kh2 {[%emt 0:01:09]} Ba6 {[%emt 0:01:27]} 22. Ne2 {[%emt 0:05:06]} (22. b3 $11) 22... Rae8 $15 {[%emt 0:03:43]} 23. Nf3 {[%emt 0:01:11]} e4 {[%emt 0:05:34]} (23... Bf6 $15) 24. Nh4 $1 $14 {[%emt 0:06:13]} Qh5 {[%emt 0:03:13]} 25. Nd4 {[%emt 0:00:38]} Qxd1 {[%emt 0:00:04]} 26. Rxd1 {[%emt 0:00:02]} Bxd4 {[%emt 0:00:27]} 27. Bxd4 {[%emt 0:00:54]} Nd3 {[%emt 0:04:14]} 28. Bf1 {[%emt 0:02:12]} N7c5 {[%emt 0:02:30]} 29. b3 {[%emt 0:03:17]} b5 {[%emt 0:02:48]} (29... Ra8 $14) 30. cxb5 {[%emt 0:05:11]} Bxb5 {[%emt 0:01:00]} 31. Ng2 {[%emt 0:01:31]} (31. Bxc5 $16 dxc5 32. Rdd2) 31... Rb8 $1 $11 {[%emt 0:02:52]} (31... Nb4 32. Bxb5 Nxc2 33. Bxc5 dxc5 34. Bxe8 Rxe8 35. Rc1 $14) 32. Ne3 {[%emt 0:02:43]} a4 {[%emt 0:00:47]} (32... Nb4 $6 33. Rg2 $16) 33. Rg2 {[%emt 0:08:45]} axb3 {[%emt 0:02:18]} 34. axb3 {[%emt 0:00:19]} Nxb3 {[%emt 0:01:52]} 35. Bc3 {[%emt 0:00:07]} Nbc5 {[%emt 0:00:32]} 36. Be2 {[%emt 0:00:47]} Bd7 {[%emt 0:01:36]} 37. Rf1 {[%emt 0:03:18]} Kf7 $132 {[%emt 0:02:20][%mdl 2048] Black is not keeping still} 38. g4 {[%emt 0:00:50]} Rg8 {[%emt 0:02:18]} 39. g5 {[%emt 0:04:58]} Rb3 {[%emt 0:00:27]} 40. Bh5+ {[%emt 0:00:47][%mdl 1024] White has compensation. A strong pair of Bishops.} Kf8 {[%emt 0:00:09]} 41. Bd4 {[%emt 0:00:08]} Ra3 {[%emt 0:03:48] Wards off Ra2} 42. Rb1 {[%emt 0:02:30]} (42. h4 $14 {stays ahead.}) 42... Rb3 $2 {[%emt 0:01:26][%mdl 8192] [#] Black cannot hold the game after this.} (42... Nxf4 $2 43. Rb8+ $18) (42... Nb3 $17 43. Rxb3 Rxb3) 43. Ra2 $1 $18 {[%emt 0:00:58][%cal Bg2a2,Ba2a8,Ba8h8][%mdl 32] White wants to mate with Ra8+.} Rg6 {[%emt 0:01:26]} (43... Rxg5 $2 44. Ra8+ Ke7 45. fxg5) (43... Be8 44. Ra8) 44. Ra8+ {[%emt 0:01:51]} Kf7 {[%emt 0:00:27]} (44... Be8 $142) 45. Rf1 {[%emt 0:02:12][%cal Oa8h8] Black must now prevent Rh8!} Rb4 {[%emt 0:00:43][%cal Bb3b4,Bb4a4,Ba4a2][%mdl 32]} 46. Bf6 {[%emt 0:00:15][%cal Oa8h8] White threatens Rh8! and mate.} (46. Bxg6+ hxg6 47. Bf6 Rb3 $18) 46... Ra4 {[%emt 0:00:53]} 47. Rh8 {[%emt 0:00:13] White mates.} (47. Bxg6+ hxg6 48. Rh8 Ra2+ 49. Kg1 Be8 50. Rh7+ Kf8 51. Rxc7 Nb3 $18) 47... Be8 {[%emt 0:00:14]} 48. Nxf5 {[%emt 0:00:28][%csl Gg5][%cal Rf5h6]} Ra2+ {[%emt 0:00:10]} 49. Kg3 {[%emt 0:00:34][%csl Gg5][%cal Rf5h6]} e3 {[%emt 0:00:10]} 50. Nh6# {[%emt 0:00:37] Weighted Error Value: White=0.13 (very precise) /Black=0.39.  Loses game:     	---       	Black=1      Mistake:       	White=3     	Black=3      Inaccurate:     	White=1     	Black=4      OK:         	White=11    	Black=12     Best:        	White=3     	Black=3      Strong:       	White=2     	Black=1} 1-0

[Event "French-ch U16-U18 2024"]
[Site "Agen"]
[Date "2024.04.15"]
[Round "3.17"]
[White "Van Den Brande, Norman"]
[Black "Razafindratsima, Timothe"]
[Result "0-1"]
[ECO "A07"]
[WhiteElo "2082"]
[BlackElo "2438"]
[Annotator "TA"]
[PlyCount "58"]
[EventDate "2024.04.14"]
[EventType "swiss"]
[EventCountry "FRA"]
[SourceTitle "playchess.com"]
[Source "ChessBase"]
[SourceQuality "1"]
[TimeControl "5400+30"]

{[%evp 9,58,10,12,7,43,8,28,0,12,-29,-22,-31,-28,-39,-33,-41,-33,-65,-62,-61,-55,-65,-59,-80,-85,-65,-85,-87,-70,-86,-63,-114,-26,-210,-216,-341,-347,-645,-635,-762,-772,-708,-741,-725,-713,-692,-687,-29992,-29993,-29998,-29999]} 1. Nf3 {[%emt 0:00:16]} Nf6 {[%emt 0:00:37]} 2. g3 {[%emt 0:00:06]} e6 {[%emt 0:05:44]} 3. Bg2 {[%emt 0:00:07]} d5 {[%emt 0:00:11]} 4. O-O {[%emt 0:00:07]} Bd6 {[%emt 0:00:35]} 5. d3 {[%emt 0:03:48]} c5 {[%emt 0:03:14]} 6. Re1 {[%emt 0:05:41]} Bc7 {[%emt 0:04:01]} 7. Nbd2 {[%emt 0:05:32][%cal Ob2b4]} e5 {[%emt 0:04:00]} 8. e4 {[%emt 0:01:46] White has an edge.} d4 {[%emt 0:00:15]} 9. a4 {[%emt 0:00:23]} Nc6 {[%emt 0:02:14]} 10. Nc4 {[%emt 0:04:54]} O-O {[%emt 0:01:30]} 11. Nfd2 {[%emt 0:03:33]} Rb8 {[%emt 0:16:48]} 12. Nb3 {[%emt 0:14:28]} b6 {[%emt 0:00:51]} 13. f4 {[%emt 0:01:46]} exf4 {[%emt 0:07:18]} 14. gxf4 {[%emt 0:01:57]} Be6 {[%emt 0:00:20]} 15. Bd2 {[%emt 0:16:41]} Ne7 {[%emt 0:12:03]} 16. Qf3 {[%emt 0:09:30]} Ng6 {[%emt 0:07:25]} 17. f5 {[%emt 0:09:53]} Bxc4 {[%emt 0:08:37]} 18. fxg6 {[%emt 0:01:13]} Be6 {[%emt 0:01:58]} (18... Bxb3 {is more complex.} 19. gxh7+ Kh8 20. cxb3 Nd7) 19. gxh7+ {[%emt 0:04:53]} Nxh7 {[%emt 0:00:16]} 20. Nc1 {[%emt 0:02:05]} (20. Rf1 $15) 20... f5 {[%emt 0:07:16]} (20... Qh4 $17 21. e5 Nf6) 21. exf5 $2 {[%emt 0:01:48] Loses the game.} (21. Ne2 $1 $11 {and White has nothing to worry.}) 21... Rxf5 $19 {[%emt 0:01:06]} ({Weaker is} 21... Bxf5 22. Ne2 $11) 22. Qe4 {[%emt 0:02:02]} (22. Qe2 $142 Rf6 23. Be4) 22... Re5 {[%emt 0:00:50]} 23. Qc6 {[%emt 0:02:57] [#]} (23. Qxe5 Bxe5 24. Rxe5) 23... Bd7 $1 {[%emt 0:01:31]} 24. Qg6 {[%emt 0:01:16]} Qh4 {[%emt 0:03:07]} 25. Rxe5 {[%emt 0:05:07]} Bxe5 {[%emt 0:00:02]} 26. Bd5+ {[%emt 0:00:07]} Kh8 {[%emt 0:00:03]} 27. Qg2 {[%emt 0:00:05]} Bh3 {[%emt 0:03:27]} 28. Qe4 {[%emt 0:00:54] [#]} Rf8 $1 {[%emt 0:00:25][%csl Gh3][%cal Rf8f1]} 29. Ne2 {[%emt 0:01:26]} (29. Qe2 Bxh2+) 29... Qf2+ {[%emt 0:00:09] Weighted Error Value: White=0.66/Black=0.10 (very precise) .  Loses game:     	White=1     	---        Mistake:       	White=3     	Black=1      Inaccurate:     	White=3     	Black=1      OK:         	White=4     	Black=8      Best:        	---       	Black=1      Strong:       	---       	Black=1} 0-1

[Event "French-ch U16-U18 2024"]
[Site "Agen"]
[Date "2024.04.15"]
[Round "3.18"]
[White "Belkaid, Sohan"]
[Black "Maret, Simon"]
[Result "1-0"]
[ECO "B11"]
[WhiteElo "2412"]
[BlackElo "2063"]
[Annotator "RC"]
[PlyCount "127"]
[EventDate "2024.04.14"]
[EventType "swiss"]
[EventCountry "FRA"]
[SourceTitle "playchess.com"]
[Source "ChessBase"]
[SourceQuality "1"]
[TimeControl "5400+30"]

1. e4 {[%emt 0:01:45]} c6 {[%emt 0:00:07]} 2. Nc3 {[%emt 0:02:24]} d5 {[%emt 0:00:17]} 3. Nf3 {[%emt 0:00:07]} dxe4 {[%emt 0:00:09]} 4. Nxe4 {[%emt 0:00:08]} Nf6 {[%emt 0:00:03]} 5. Qe2 {[%emt 0:02:03]} Nxe4 {[%emt 0:00:52]} 6. Qxe4 {[%emt 0:00:08]} Nd7 {[%emt 0:00:03]} 7. Bc4 {[%emt 0:00:43]} Nf6 {[%emt 0:00:07]} 8. Ne5 {[%emt 0:00:06]} e6 {[%emt 0:00:02]} 9. Qe2 {[%emt 0:00:08]} b5 {[%emt 0:00:04]} 10. Bd3 {[%emt 0:04:06]} Qc7 {[%emt 0:05:39]} 11. a4 {[%emt 0:00:33]} Bd6 {[%emt 0:00:44]} 12. Nxc6 {[%emt 0:00:14]} b4 {[%emt 0:00:06]} 13. Nd4 {[%emt 0:00:06]} a6 {[%emt 0:00:03]} 14. Nf5 {[%emt 0:00:22]} Bb7 {[%emt 0:00:09]} 15. Nxd6+ {[%emt 0:01:22]} Qxd6 {[%emt 0:00:39]} 16. O-O {[%emt 0:00:18]} h5 {[%emt 0:00:19]} 17. Qe3 {[%emt 0:00:15]} Rd8 {[%emt 0:03:11]} 18. f3 {[%emt 0:10:50]} h4 {[%emt 0:13:01]} 19. b3 {[%emt 0:11:07]} Rh5 {[%emt 0:07:46]} 20. Bb2 {[%emt 0:08:59]} Nd5 {[%emt 0:23:19]} 21. Qa7 {[%emt 0:43:53]} Rd7 {[%emt 0:26:03]} 22. Be4 {[%emt 0:04:55]} f5 {[%emt 0:07:46]} 23. Bxd5 {[%emt 0:00:18]} Bxd5 {[%emt 0:00:07]} 24. Qf2 {[%emt 0:02:55]} Kf7 {[%emt 0:08:39]} 25. h3 {[%emt 0:01:06]} Rc7 {[%emt 0:00:55]} 26. d3 {[%emt 0:01:05]} Rh8 {[%emt 0:00:43]} 27. Rae1 {[%emt 0:01:44]} Qc5 {[%emt 0:00:54]} 28. Re2 {[%emt 0:01:19]} Qxf2+ {[%emt 0:00:18]} 29. Rfxf2 {[%emt 0:00:11]} Rhc8 {[%emt 0:00:49]} 30. Be5 {[%emt 0:01:36]} Rc6 {[%emt 0:00:32]} 31. Bf4 {[%emt 0:00:35]} Kf6 {[%emt 0:00:49]} 32. Be5+ {[%emt 0:00:05]} Kf7 {[%emt 0:00:10]} 33. f4 {[%emt 0:00:30]} Rg8 {[%emt 0:00:28]} 34. Kf1 {[%emt 0:00:44]} Rgc8 {[%emt 0:00:59]} 35. Ke1 {[%emt 0:00:34]} Ra8 {[%emt 0:01:08]} 36. Kd1 {[%emt 0:00:24]} Rac8 {[%emt 0:00:13]} 37. Re3 {[%emt 0:00:30]} g6 {[%emt 0:00:30]} 38. Ree2 {[%emt 0:01:22]} Ra8 {[%emt 0:00:05]} 39. Rd2 {[%emt 0:00:00]} Rac8 {[%emt 0:00:12]} 40. Ke1 {[%emt 0:00:25]} Ke8 {[%emt 0:01:22]} 41. Bf6 {[%emt 0:00:23]} Kf7 {[%emt 0:00:39]} 42. Bxh4 {[%emt 0:00:19]} Re8 {[%emt 0:00:38]} 43. Rfe2 {[%emt 0:00:16]} Rec8 {[%emt 0:00:39]} 44. Kf1 {[%emt 0:00:18]} Rg8 {[%emt 0:00:26]} 45. Bf2 {[%emt 0:01:17]} g5 {[%emt 0:00:09]} 46. fxg5 {[%emt 0:00:03]} Rxg5 {[%emt 0:00:01]} 47. Be3 {[%emt 0:00:01]} Rg6 {[%emt 0:00:32]} 48. Bf4 {[%emt 0:00:27]} Rc8 {[%emt 0:00:49]} 49. Bd6 {[%emt 0:00:31]} a5 {[%emt 0:00:01]} 50. Rf2 {[%emt 0:00:20]} Ke8 {[%emt 0:00:24]} 51. Rf4 {[%emt 0:01:31]} Kd7 {[%emt 0:00:00]} 52. Be5 {[%emt 0:00:01]} Rcg8 {[%emt 0:00:08]} 53. Rd4 {[%emt 0:00:02]} Kc6 {[%emt 0:01:45]} 54. g3 {[%emt 0:00:07]} Rh6 {[%emt 0:01:20]} 55. Rh4 {[%emt 0:01:50]} Rxh4 {[%emt 0:00:24]} 56. gxh4 {[%emt 0:00:02]} Rg6 {[%emt 0:00:22]} 57. Kf2 {[%emt 0:00:52]} Rh6 {[%emt 0:00:46]} 58. Kg3 {[%emt 0:00:26]} Kd7 {[%emt 0:00:32]} 59. Re2 {[%emt 0:00:29]} Kc6 {[%emt 0:00:14]} 60. Bf4 {[%emt 0:00:11]} Rh7 {[%emt 0:00:23]} 61. Bg5 {[%emt 0:00:33]} Kd7 {[%emt 0:00:41]} 62. Kf4 {[%emt 0:00:15]} Kd6 {[%emt 0:00:01]} 63. Bf6 {[%emt 0:00:27]} Rh5 {[%emt 0:00:15]} 64. Re3 {[%emt 0:00:24]} 1-0

[Event "French-ch U16-U18 2024"]
[Site "Agen"]
[Date "2024.04.15"]
[Round "3.19"]
[White "Morais, Thomas"]
[Black "Bat, Bilguun"]
[Result "0-1"]
[ECO "B90"]
[WhiteElo "2072"]
[BlackElo "2360"]
[Annotator "RC"]
[PlyCount "136"]
[EventDate "2024.04.14"]
[EventType "swiss"]
[EventCountry "FRA"]
[SourceTitle "playchess.com"]
[Source "ChessBase"]
[SourceQuality "1"]
[TimeControl "5400+30"]

1. e4 {[%emt 0:00:04]} c5 {[%emt 0:02:44]} 2. Nf3 {[%emt 0:00:15]} d6 {[%emt 0:00:14]} 3. d4 {[%emt 0:00:10]} cxd4 {[%emt 0:00:11]} 4. Nxd4 {[%emt 0:00:07]} Nf6 {[%emt 0:00:08]} 5. Nc3 {[%emt 0:00:08]} a6 {[%emt 0:00:07]} 6. f3 {[%emt 0:00:23]} e5 {[%emt 0:00:22]} 7. Nb3 {[%emt 0:00:06]} Be6 {[%emt 0:00:34]} 8. Be3 {[%emt 0:00:10]} Be7 {[%emt 0:00:09]} 9. Qd2 {[%emt 0:00:09]} h5 {[%emt 0:00:59]} 10. Nd5 {[%emt 0:00:17]} Bxd5 {[%emt 0:01:58]} 11. exd5 {[%emt 0:00:11]} Nbd7 {[%emt 0:00:07]} 12. O-O-O {[%emt 0:00:09]} Qc7 {[%emt 0:00:25]} 13. c4 {[%emt 0:00:50]} a5 {[%emt 0:00:37]} 14. Kb1 {[%emt 0:00:08]} O-O {[%emt 0:02:57]} 15. Na1 {[%emt 0:00:06]} a4 {[%emt 0:00:08]} 16. Be2 {[%emt 0:00:08]} a3 {[%emt 0:01:28]} 17. b3 {[%emt 0:00:06]} Rfe8 {[%emt 0:11:05]} 18. Nc2 {[%emt 0:02:16]} Bf8 {[%emt 0:05:00]} 19. Qb4 {[%emt 0:02:41]} Qa5 {[%emt 0:17:20]} 20. Qxa5 {[%emt 0:13:41]} Rxa5 {[%emt 0:00:15]} 21. Bd2 {[%emt 0:00:05]} Ra7 {[%emt 0:01:15]} 22. Be3 {[%emt 0:01:36]} Ra5 {[%emt 0:06:23]} 23. Bd2 {[%emt 0:00:18]} Ra7 {[%emt 0:01:52]} 24. Be3 {[%emt 0:00:11]} b6 {[%emt 0:00:24]} 25. Nb4 {[%emt 0:01:30]} g6 {[%emt 0:01:47]} 26. Nc6 {[%emt 0:01:15]} Raa8 {[%emt 0:00:06]} 27. Rhe1 {[%emt 0:12:26]} Kh7 {[%emt 0:02:00]} 28. Bd3 {[%emt 0:18:07]} Bh6 {[%emt 0:04:08]} 29. Kc2 {[%emt 0:10:04]} h4 {[%emt 0:04:25]} 30. Bf2 {[%emt 0:05:36]} Bg5 {[%emt 0:00:45]} 31. g3 {[%emt 0:01:48]} Nh5 {[%emt 0:02:00]} 32. g4 {[%emt 0:02:15]} Nf4 {[%emt 0:01:40]} 33. Be3 {[%emt 0:00:07]} Nh3 {[%emt 0:05:19]} 34. b4 {[%emt 0:01:38]} Bxe3 {[%emt 0:03:09]} 35. Rxe3 {[%emt 0:00:02]} Nf4 {[%emt 0:00:21]} 36. Kb3 {[%emt 0:02:44]} Kh6 {[%emt 0:02:02]} 37. Rg1 {[%emt 0:05:55]} Kg5 {[%emt 0:00:13]} 38. Be4 {[%emt 0:01:57]} Nh3 {[%emt 0:04:22]} 39. Rge1 {[%emt 0:03:24]} f5 {[%emt 0:02:27]} 40. Bc2 {[%emt 0:01:26]} fxg4 {[%emt 0:02:02]} 41. fxg4 {[%emt 0:00:20]} Nf4 {[%emt 0:00:07]} 42. Nd4 {[%emt 0:02:16]} Kh6 {[%emt 0:08:24]} 43. Nb5 {[%emt 0:01:02]} Ng2 {[%emt 0:02:03]} 44. Nc7 {[%emt 0:00:16]} Rec8 {[%emt 0:03:42]} 45. Nxa8 {[%emt 0:00:26]} Rxa8 {[%emt 0:00:02]} 46. g5+ {[%emt 0:00:34]} Kg7 {[%emt 0:00:09]} 47. Be4 {[%emt 0:03:21]} Nxe1 {[%emt 0:00:14]} 48. Rxe1 {[%emt 0:00:02]} Nf8 {[%emt 0:01:31]} 49. Rg1 {[%emt 0:01:32]} Nh7 {[%emt 0:00:23]} 50. c5 {[%emt 0:01:44]} bxc5 {[%emt 0:00:58]} 51. bxc5 {[%emt 0:00:01]} dxc5 {[%emt 0:00:09]} 52. Kc4 {[%emt 0:00:11]} Ra4+ {[%emt 0:00:12]} 53. Kd3 {[%emt 0:00:57]} Rd4+ {[%emt 0:00:05]} 54. Ke3 {[%emt 0:00:03]} c4 {[%emt 0:01:05]} 55. Bf3 {[%emt 0:01:27]} Kf7 {[%emt 0:01:43]} 56. Rg4 {[%emt 0:02:17]} Rxg4 {[%emt 0:01:30]} 57. Bxg4 {[%emt 0:00:01]} Nxg5 {[%emt 0:00:06]} 58. Be2 {[%emt 0:00:02]} Ke7 {[%emt 0:00:33]} 59. Bxc4 {[%emt 0:00:01]} Kd6 {[%emt 0:00:05]} 60. Bd3 {[%emt 0:00:49]} e4 {[%emt 0:02:23]} 61. Ba6 {[%emt 0:03:54]} Kxd5 {[%emt 0:00:30]} 62. Kf4 {[%emt 0:00:02]} Ne6+ {[%emt 0:00:53]} 63. Ke3 {[%emt 0:01:10]} Ke5 {[%emt 0:00:38]} 64. Bb5 {[%emt 0:01:26]} Nd4 {[%emt 0:00:27]} 65. Be8 {[%emt 0:00:13]} g5 {[%emt 0:00:10]} 66. h3 {[%emt 0:00:16]} Nf5+ {[%emt 0:00:04]} 67. Ke2 {[%emt 0:00:06]} Kf4 {[%emt 0:00:02]} 68. Bc6 {[%emt 0:00:18]} Nd4+ {[%emt 0:00:04]} 0-1

[Event "French-ch U16-U18 2024"]
[Site "Agen"]
[Date "2024.04.15"]
[Round "3.20"]
[White "Marche, Nael"]
[Black "Pichon, Ewen"]
[Result "1/2-1/2"]
[ECO "D02"]
[WhiteElo "2057"]
[BlackElo "2252"]
[Annotator "TA"]
[PlyCount "49"]
[EventDate "2024.04.14"]
[EventType "swiss"]
[EventCountry "FRA"]
[SourceTitle "playchess.com"]
[Source "ChessBase"]
[SourceQuality "1"]
[TimeControl "5400+30"]

{[%evp 9,49,31,62,15,29,3,22,2,0,0,0,-3,-26,-13,7,-2,0,0,0,0,18,10,25,32,34,31,29,37,39,35,47,22,42,43,43,35,45,13,54,31,30,11]} 1. Nf3 {[%emt 0:00:07]} d5 {[%emt 0:00:16]} 2. g3 {[%emt 0:00:13]} Nf6 {[%emt 0:00:44]} 3. Bg2 {[%emt 0:01:04]} e6 {[%emt 0:00:51][%cal Be7e6,Be6e5][%mdl 32]} 4. d4 {[%emt 0:00:34]} a6 {[%emt 0:00:48]} 5. O-O {[%emt 0:01:48]} c5 {[%emt 0:01:58]} 6. b3 {[%emt 0:05:46]} (6. c4 $14) 6... cxd4 $11 {[%emt 0:01:20]} 7. Bb2 {[%emt 0:01:56]} Bd6 {[%emt 0:00:57]} 8. Nxd4 {[%emt 0:00:33] The position is equal.} e5 {[%emt 0:00:23]} 9. Nf3 {[%emt 0:00:25]} Nc6 {[%emt 0:00:03]} 10. Nbd2 {[%emt 0:06:07]} O-O {[%emt 0:01:00]} 11. e3 {[%emt 0:06:10]} Bf5 {[%emt 0:07:23]} 12. a3 {[%emt 0:12:14]} Qe7 {[%emt 0:04:49]} 13. c4 {[%emt 0:06:04]} Bd3 {[%emt 0:04:48]} 14. Re1 {[%emt 0:00:10]} dxc4 {[%emt 0:00:05]} 15. Nxc4 {[%emt 0:00:15]} Bxc4 {[%emt 0:00:12]} 16. bxc4 {[%emt 0:00:10]} Rfd8 {[%emt 0:01:08][%cal Od6b4]} 17. Qe2 {[%emt 0:01:39]} Rac8 {[%emt 0:00:29]} 18. Nd2 {[%emt 0:05:13]} Rc7 {[%emt 0:08:40]} 19. Red1 {[%emt 0:03:20]} Rcc8 {[%emt 0:08:18]} 20. Nb3 {[%emt 0:07:54]} Bb8 {[%emt 0:08:04]} 21. Bh3 {[%emt 0:04:53] This pair of bishops is nice.} Rxd1+ $1 {[%emt 0:00:17]} 22. Rxd1 {[%emt 0:00:13]} Rd8 {[%emt 0:00:05]} 23. Bg2 {[%emt 0:00:56]} Rc8 {[%emt 0:01:40]} 24. Qd3 {[%emt 0:04:16]} Rd8 {[%emt 0:01:44]} 25. Qc2 {[%emt 0:31:00] Weighted Error Value: White=0.12 (very precise) /Black=0.09 (flawless) .  Inaccurate:     	White=2     	Black=1      OK:         	White=6     	Black=5      Strong:       	---       	Black=1} 1/2-1/2